bitfinex-derivatives/quotes_ETHF0:USTF0_20250214
["timestamp","ask_amount","ask_price","bid_price","bid_amount"]
[1739546000372,4.40338351,2703.5,2703.2,3.2078]
[1739546000666,4.40338351,2703.5,2702.7,0.7398]
[1739546000667,0.73966,2703.3,2702.7,0.7398]
[1739546000862,3.94746,2703.3,2702.7,0.7398]
[1739546001263,0.73967,2703.2,2702.6,3.94764]
[1739546001459,3.2078,2702.9,2702.0,3.2078]
[1739546001868,2.58081,2702.8,2702.0,3.2078]
[1739546002061,0.73989,2702.5,2702.0,3.2078]
[1739546002267,1.841,2702.8,2701.5,1.1511]
[1739546002268,7.61118351,2702.3,2701.5,1.1511]
[1739546002571,3.2078,2701.6,2700.7,3.2078]
[1739546002775,3.2078,2701.2,2700.7,3.2078]
[1739546003065,4.40338351,2701.5,2700.7,3.2078]
[1739546003268,3.21334436,2701.2,2700.7,3.2078]
[1739546003676,3.21334436,2701.2,2700.8,0.74033]
[1739546003677,5.06734436,2701.2,2700.8,0.74033]
[1739546003867,5.06734436,2701.2,2700.7,3.2078]
[1739546004071,4.40338351,2701.1,2700.7,3.2078]
[1739546004270,4.40338351,2701.1,2700.7,3.94815]
[1739546004467,3.2078,2701.0,2700.9,0.05216229]
[1739546004666,9.49018351,2701.0,2699.5,17.2034417]
[1739546004870,4.40338351,2700.3,2699.8,3.2078]
[1739546005168,4.40338351,2700.3,2699.5,20.4112417]
[1739546005379,0.7405,2700.2,2699.5,17.2034417]
[1739546005677,10.40338351,2700.3,2699.5,17.2034417]
[1739546005876,19.366,2700.7,2699.5,17.2034417]
[1739546005877,3.2078,2699.9,2699.5,17.2034417]
[1739546006178,19.366,2700.7,2699.8,3.2078]
[1739546006179,4.40338351,2700.5,2699.8,3.2078]
[1739546006367,4.40338351,2700.9,2700.0,3.2078]
[1739546006563,3.21334436,2701.2,2700.5,3.2078]
[1739546006763,3.21334436,2701.2,2700.7,0.74035]
[1739546006969,3.21334436,2701.2,2700.5,3.2078]
[1739546007173,0.00554436,2701.2,2701.1,3.94805]
[1739546007372,3.2078,2702.1,2701.1,11.1078]
[1739546007576,7.61118351,2702.1,2701.4,3.2078]
[1739546007873,7.61118351,2702.1,2701.3,3.2078]
[1739546008073,1.906,2702.3,2701.6,3.2078]
[1739546008271,3.2078,2702.7,2702.0,3.2078]
[1739546008473,4.40338351,2702.9,2702.3,3.2078]
[1739546008674,8.35084351,2703.3,2702.3,3.2078]
[1739546008869,7.61118351,2703.3,2702.3,3.2078]
[1739546009069,0.00555514,2702.9,2702.3,3.2078]
[1739546009269,0.00555514,2702.9,2702.2,5.1148]
[1739546009478,0.00555514,2702.9,2702.2,3.2078]
[1739546009675,4.40893865,2702.9,2702.2,3.2078]
[1739546009978,0.74004,2701.9,2701.7,0.00555514]
[1739546010185,4.40338351,2702.0,2701.7,0.00555514]
[1739546010480,3.94785,2701.9,2701.7,0.00555514]
[1739546010681,3.2078,2701.9,2701.7,0.00555514]
[1739546011678,0.74006,2701.8,2701.7,0.00555514]
[1739546012073,3.2078,2701.9,2701.7,0.00555514]
[1739546012476,4.4085,2702.2,2701.7,0.00555514]
[1739546012671,4.40338351,2702.4,2701.7,0.00555514]
[1739546013374,3.2078,2702.2,2701.7,0.74561514]
[1739546013575,3.2078,2702.2,2701.7,0.74563514]
[1739546013772,3.2078,2701.8,2701.7,0.00555514]
[1739546014076,3.94786,2701.8,2701.7,0.00555514]
[1739546014673,3.2078,2701.8,2701.7,0.00555514]
[1739546015077,4.40338351,2702.0,2701.7,0.00555514]
[1739546015383,3.2078,2702.3,2701.7,0.00555514]
[1739546015774,3.2078,2702.3,2702.2,0.73995]
[1739546015980,4.40338351,2702.8,2702.0,3.2078]
[1739546016168,4.40338351,2702.8,2702.6,0.73982]
[1739546016376,4.40338351,2702.8,2702.0,3.2078]
[1739546016569,3.2078,2702.7,2702.0,3.2078]
[1739546016775,5.1228,2702.7,2702.2,0.73995]
[1739546016979,5.1228,2702.7,2702.0,3.2078]
[1739546017181,0.00555514,2702.9,2702.3,3.2078]
[1739546017377,0.00555514,2702.9,2702.8,0.73978]
[1739546017680,0.00555514,2702.9,2702.3,3.2078]
[1739546017982,3.2078,2702.7,2702.1,1.914]
[1739546018476,3.2078,2702.7,2702.3,3.2078]
[1739546018686,4.40338351,2702.8,2702.3,0.73991]
[1739546018882,3.2078,2702.6,2702.2,0.73994]
[1739546019177,3.2078,2702.6,2701.9,3.2078]
[1739546019381,4.40338351,2702.8,2702.6,0.73981]
[1739546019576,4.40338351,2702.8,2702.7,0.73981]
[1739546020184,0.00555514,2702.9,2702.8,0.73978]
[1739546020680,3.95311514,2702.9,2702.2,3.2078]
[1739546020980,0.00555514,2702.9,2702.5,3.2078]
[1739546021184,0.00555514,2702.9,2702.7,0.7398]
[1739546021378,3.21335514,2702.9,2702.5,3.2078]
[1739546021581,0.00555514,2702.9,2702.5,3.2078]
[1739546021782,0.00555514,2702.9,2702.8,0.73978]
[1739546022677,3.21335514,2702.9,2702.8,0.73978]
[1739546022878,0.00555514,2702.9,2702.8,0.73978]
[1739546023482,0.00555514,2702.9,2702.8,3.94758]
[1739546023878,3.2078,2703.8,2702.6,1.924]
[1739546024081,3.2078,2703.6,2702.7,5.6506]
[1739546024388,0.73961,2703.5,2703.2,0.73966]
[1739546024687,8.35076351,2703.6,2703.3,0.73964]
[1739546024879,7.61118351,2703.6,2702.8,1.84945]
[1739546025087,3.2078,2703.3,2702.8,1.84945]
[1739546025279,3.2078,2703.3,2703.2,0.74521514]
[1739546025479,3.2078,2703.3,2703.2,0.74522514]
[1739546025675,7.61118351,2703.6,2703.2,0.00555514]
[1739546025977,4.40338351,2703.6,2703.5,0.73959]
[1739546026384,0.00555514,2703.7,2703.6,0.73957]
[1739546029088,0.01464,2704.2,2704.1,0.73943]
[1739546030877,3.22244,2704.2,2704.1,0.73943]
[1739546031082,3.22244,2704.2,2703.7,1.2195]
[1739546031283,3.22244,2704.2,2704.1,0.73943]
[1739546031485,3.22244,2704.2,2703.5,3.2078]
[1739546031486,3.22244,2704.2,2703.2,1.85472514]
[1739546031781,7.61118351,2703.4,2703.2,0.00555514]
[1739546031987,8.35081351,2703.4,2703.2,0.00555514]
[1739546032485,7.61118351,2703.4,2703.2,0.74521514]
[1739546032688,7.61118351,2703.4,2703.3,0.73965]
[1739546032987,5.1238,2703.7,2703.2,0.00555514]
[1739546033191,5.55118351,2703.8,2703.7,0.73954]
[1739546033487,4.40338351,2703.8,2703.7,0.73954]
[1739546033680,0.73955,2703.7,2703.2,0.00555514]
[1739546033987,0.73955,2703.7,2703.6,0.73957]
[1739546033988,3.2078,2703.7,2703.6,0.73957]
[1739546034189,3.2078,2703.7,2703.2,1.85473514]
[1739546034190,3.2078,2704.0,2703.9,0.73948]
[1739546034689,4.41802351,2704.2,2704.1,0.73943]
[1739546035078,4.41802351,2704.2,2703.6,3.2078]
[1739546035079,7.62582351,2704.2,2703.6,3.2078]
[1739546035288,8.36523351,2704.2,2703.6,3.2078]
[1739546035489,8.36523351,2704.2,2703.3,1.2346]
[1739546035490,7.62582351,2704.2,2703.3,1.2346]
[1739546035886,3.2078,2703.9,2703.7,0.73951]
[1739546036289,3.2078,2703.9,2703.8,0.73951]
[1739546036690,4.41802351,2704.2,2704.1,0.73943]
[1739546036886,0.01464,2704.2,2704.1,0.73943]
[1739546038394,0.00555514,2704.4,2704.3,0.73937]
[1739546038890,5.14e-06,2704.4,2704.3,0.73937]
[1739546039290,5.14e-06,2704.4,2704.3,1.91187]
[1739546039492,5.14e-06,2704.4,2704.3,7.91187]
[1739546040495,5.14e-06,2704.4,2704.3,1.91187]
[1739546041203,5.14e-06,2704.4,2704.3,7.91187]
[1739546041403,5.14e-06,2704.4,2704.3,11.11967]
[1739546041699,5.14e-06,2704.4,2704.3,1.91187]
[1739546042701,0.73937514,2704.4,2704.2,0.73939]
[1739546042894,3.94717,2704.3,2704.2,0.73939]
[1739546043092,3.2078,2704.3,2704.2,0.73939]
[1739546043290,3.2078,2704.3,2703.9,3.2078]
[1739546043599,0.73941,2704.2,2704.0,0.73944]
[1739546043800,4.40338351,2704.2,2703.2,1.85471514]
[1739546044095,4.40338351,2704.2,2703.7,0.73953]
[1739546044096,3.94728,2704.0,2703.7,0.73953]
[1739546044293,3.2078,2704.0,2703.2,0.00555514]
[1739546044599,3.2078,2703.9,2703.2,0.00555514]
[1739546044794,3.2078,2703.9,2703.8,0.73951]
[1739546045101,3.2078,2703.9,2703.3,5.05693]
[1739546045296,3.2078,2703.9,2703.7,0.73953]
[1739546045593,3.2078,2703.9,2703.2,3.21335514]
[1739546046096,3.2078,2703.9,2703.7,0.73953]
[1739546046299,3.2078,2703.9,2703.7,0.73952]
[1739546046500,3.2078,2703.9,2703.2,3.21335514]
[1739546046792,3.2078,2703.9,2703.8,0.73951]
[1739546047795,5.14e-06,2704.4,2703.5,3.2078]
[1739546048000,5.14e-06,2704.4,2704.2,0.73938]
[1739546048295,5.14e-06,2704.4,2704.3,0.73937]
[1739546048498,5.14e-06,2704.4,2704.2,0.7394]
[1739546048686,5.14e-06,2704.4,2703.7,1.84885]
[1739546048892,3.2078,2704.3,2704.2,0.73938]
[1739546049086,5.14e-06,2704.4,2704.3,0.73937]
[1739546050090,5.14e-06,2704.4,2704.3,7.89277]
[1739546050293,5.14e-06,2704.4,2704.3,1.89277]
[1739546053397,5.14e-06,2704.4,2704.3,7.89277]
[1739546053896,7.61118351,2706.4,2704.3,11.55678351]
[1739546054095,4.4438,2706.4,2705.5,0.73905]
[1739546054290,4.4438,2706.4,2705.5,2.64105]
[1739546054490,4.4438,2706.4,2705.8,3.2078]
[1739546054697,4.4438,2706.4,2705.9,0.73894]
[1739546054900,4.4438,2706.4,2705.8,3.2078]
[1739546055109,4.44934416,2706.4,2705.9,0.00554416]
[1739546055299,3.21334416,2706.4,2706.2,0.73884]
[1739546055495,0.73891,2706.0,2705.9,0.00554416]
[1739546055700,5.14229351,2706.0,2705.9,0.00554416]
[1739546056003,6.3478,2706.3,2706.2,0.73885]
[1739546056004,1.236,2706.3,2706.2,0.73885]
[1739546056211,0.00554416,2706.4,2706.0,3.2078]
[1739546056603,0.74435416,2706.4,2706.2,0.73885]
[1739546057104,0.00554416,2706.4,2706.0,3.2078]
[1739546057606,0.00554416,2706.4,2706.3,0.73883]
[1739546058106,0.73887,2706.2,2705.9,0.74447416]
[1739546058296,3.2078,2706.1,2705.9,0.00554416]
[1739546058498,0.73883,2706.3,2705.9,0.74446416]
[1739546058698,3.2078,2706.1,2705.9,0.00554416]
[1739546058899,5.14229351,2706.0,2705.9,0.00554416]
[1739546059099,7.63419351,2706.0,2705.9,0.00554416]
[1739546059500,5.14229351,2706.0,2705.9,0.00554416]
[1739546059705,3.2078,2706.0,2705.9,0.00554416]
[1739546059896,4.472,2706.3,2705.9,0.00554416]
[1739546060105,3.94671,2706.0,2705.9,0.00554416]
[1739546060606,3.2078,2706.0,2705.9,0.74448416]
[1739546060806,3.2078,2706.3,2705.9,0.00554416]
[1739546061110,0.73891,2706.0,2705.9,0.00554416]
[1739546061904,3.94671,2706.0,2705.9,0.00554416]
[1739546062806,8.35009351,2706.0,2705.9,0.00554416]
[1739546063207,13.61118351,2706.0,2704.8,0.73921]
[1739546063407,3.2078,2704.9,2704.1,1.2751]
[1739546063617,3.94707,2704.7,2704.4,0.73933]
[1739546063825,7.61118351,2705.2,2704.2,5.05631]
[1739546064024,3.2078,2704.9,2704.8,0.73923]
[1739546064225,3.2078,2704.9,2704.2,6.97031]
[1739546064226,0.73913,2705.2,2704.9,0.7392]
[1739546064423,0.00554416,2705.1,2705.0,0.73918]
[1739546064627,0.00554416,2705.1,2704.9,0.7392]
[1739546064927,0.00554416,2705.1,2705.0,0.73918]
[1739546065226,0.74471416,2705.1,2704.8,0.73922]
[1739546065431,0.00554416,2705.1,2704.6,0.00554416]
[1739546065623,0.74471416,2705.1,2704.8,0.73923]
[1739546065927,0.00554416,2705.1,2704.8,0.73922]
[1739546066122,0.74470416,2705.1,2704.8,0.73922]
[1739546066529,0.00554416,2705.1,2704.6,0.00554416]
[1739546066824,0.73919,2705.0,2704.7,0.73925]
[1739546067024,0.00554416,2705.1,2704.6,0.00554416]
[1739546067326,0.73926,2704.7,2704.6,0.00554416]
[1739546067625,3.94706,2704.7,2704.6,0.00554416]
[1739546067823,3.2078,2704.7,2704.6,0.00554416]
[1739546068024,3.94706,2704.7,2704.6,0.00554416]
[1739546068728,3.2078,2704.7,2704.6,0.00554416]
[1739546069627,3.94706,2704.7,2704.6,0.00554416]
[1739546069929,3.2078,2704.7,2704.6,0.00554416]
[1739546070122,3.2078,2704.7,2704.6,0.74483416]
[1739546070427,3.2078,2705.0,2704.6,0.00554416]
[1739546071427,0.00554416,2705.1,2704.6,0.00554416]
[1739546071624,0.00554416,2705.1,2704.6,4.16e-06]
[1739546071625,3.2078,2704.7,2704.6,4.16e-06]
[1739546071828,7.61118351,2704.7,2703.3,4.4789]
[1739546072029,3.2078,2703.9,2703.3,1.2711]
[1739546072326,3.2078,2703.6,2703.3,2.01073]
[1739546072528,3.2078,2703.6,2703.3,1.2711]
[1739546072731,3.2078,2703.6,2703.3,2.01074]
[1739546073028,0.00554416,2703.7,2703.4,0.7396]
[1739546073230,0.74509416,2703.7,2703.3,2.01073]
[1739546073529,0.00554416,2703.7,2703.3,2.01073]
[1739546073731,0.00554416,2703.7,2703.4,0.7396]
[1739546074030,0.00554416,2703.7,2703.3,1.2711]
[1739546074238,0.74510416,2703.7,2703.3,1.2711]
[1739546074422,0.00554416,2703.7,2703.6,0.73957]
[1739546074933,0.00554416,2703.7,2703.3,4.4789]
[1739546075133,0.73964,2703.4,2703.2,0.00554416]
[1739546075432,0.7396,2703.5,2703.2,3.95301416]
[1739546075632,0.00554416,2703.7,2703.2,3.21334416]
[1739546075832,0.7396,2703.5,2703.2,3.95300416]
[1739546076131,0.73964,2703.4,2703.2,0.00554416]
[1739546076325,3.21334416,2703.7,2703.2,0.00554416]
[1739546076528,0.73965,2703.3,2703.2,0.00554416]
[1739546079130,3.2078,2703.4,2703.2,0.00554416]
[1739546079528,0.00554416,2703.7,2703.2,0.00554416]
[1739546079529,3.21334416,2703.7,2703.2,0.00554416]
[1739546079737,0.00554416,2703.7,2703.5,0.73958]
[1739546080531,0.00554416,2703.7,2703.6,0.73957]
[1739546081034,0.00554416,2703.7,2703.5,3.2078]
[1739546081734,0.74509416,2703.7,2703.5,3.94739]
[1739546081935,0.00554416,2703.7,2703.5,3.94739]
[1739546082233,0.00554416,2703.7,2703.6,0.73957]
[1739546082830,0.00554416,2703.7,2703.6,1.91757]
[1739546083032,0.00554416,2703.7,2703.6,3.11547]
[1739546083425,0.00554416,2703.7,2703.5,3.2078]
[1739546083629,0.73957,2703.6,2703.5,3.2078]
[1739546084128,0.73965,2703.3,2703.2,0.00554416]
[1739546085130,1.84913,2703.3,2702.3,4.4257]
[1739546085433,3.2078,2703.0,2702.3,4.4257]
[1739546085621,0.73979,2702.8,2702.5,0.73985]
[1739546085824,3.2078,2703.3,2702.3,4.4257]
[1739546086025,0.7398,2702.8,2702.5,0.73985]
[1739546086223,0.7398,2702.8,2702.5,0.00554416]
[1739546086433,3.2078,2703.3,2702.5,0.00554416]
[1739546086635,0.7398,2702.8,2702.5,0.74539416]
[1739546086833,0.73977,2702.9,2702.6,0.73983]
[1739546087032,3.2078,2703.0,2702.5,0.00554416]
[1739546087232,3.2078,2703.0,2702.7,0.73979]
[1739546087432,3.2078,2703.0,2702.5,0.00554416]
[1739546088126,3.94754,2703.0,2702.7,0.73981]
[1739546088327,3.2078,2703.0,2702.7,0.73981]
[1739546088528,3.2078,2703.0,2702.5,0.00554416]
[1739546089229,3.2078,2703.0,2702.8,0.73977]
[1739546089432,9.55518351,2703.4,2702.9,0.73975]
[1739546089631,1.943,2703.5,2702.9,3.2078]
[1739546089935,0.00554416,2703.7,2703.2,3.2078]
[1739546090235,0.00554416,2703.7,2703.2,4.3923]
[1739546090733,0.00554416,2703.7,2703.6,0.73957]
[1739546090927,0.00554416,2703.7,2703.3,1.2345]
[1739546091326,0.00554416,2703.7,2703.4,0.7396]
[1739546091527,0.73958,2703.6,2703.4,0.73961]
[1739546091727,0.73958,2703.6,2703.3,1.2345]
[1739546091928,0.00554416,2703.7,2703.3,1.2345]
[1739546092225,0.00554416,2703.7,2703.6,0.73957]
[1739546094533,0.00554416,2703.7,2703.5,3.94739]
[1739546094734,0.74509416,2703.7,2703.5,3.94739]
[1739546095244,0.74509416,2703.7,2703.6,0.73957]
[1739546095245,0.00554416,2703.7,2703.6,0.73957]
[1739546097432,0.74509416,2703.7,2703.6,0.73957]
[1739546098136,0.00554416,2703.7,2703.3,3.08359]
[1739546098337,0.00554416,2703.7,2703.6,0.73957]
[1739546099235,0.00554416,2703.7,2703.6,3.94737]
[1739546100233,4.04494146,2704.6,2703.6,11.1228]
[1739546100432,3.2078,2704.7,2703.9,3.2078]
[1739546100739,3.2078,2704.3,2703.9,3.2078]
[1739546100940,3.2078,2704.0,2703.6,3.2078]
[1739546101242,7.25274146,2704.0,2703.3,1.2345]
[1739546101440,0.73954,2703.7,2703.6,0.73954]
[1739546101638,0.73957,2703.6,2703.5,0.00554416]
[1739546102040,4.04494146,2703.7,2703.5,0.00554416]
[1739546102248,8.51104146,2704.0,2703.5,0.74512416]
[1739546102541,0.73957,2703.6,2703.5,0.00554416]
[1739546102938,0.73957,2703.6,2703.5,0.74513416]
[1739546103137,0.73955,2703.7,2703.5,0.00554416]
[1739546103343,3.94727,2704.0,2703.8,0.7395]
[1739546103540,3.2078,2704.0,2703.7,0.73951]
[1739546103743,3.2078,2704.0,2703.5,0.00554416]
[1739546104043,0.73951,2703.8,2703.6,0.73957]
[1739546104244,3.2078,2704.0,2703.5,0.00554416]
[1739546104545,0.00554416,2704.1,2704.0,0.73946]
[1739546104847,0.74499416,2704.1,2703.9,0.73947]
[1739546105048,0.74499416,2704.1,2703.6,5.05672]
[1739546105244,0.7395,2703.9,2703.5,0.00554416]
[1739546105438,0.00554416,2704.1,2704.0,0.73946]
[1739546105643,4.04494146,2704.9,2703.8,3.2078]
[1739546105848,1.27,2705.1,2704.2,1.84851]
[1739546106148,0.73926,2704.7,2704.6,0.73927]
[1739546106349,0.73926,2704.7,2704.4,3.2078]
[1739546106548,0.73926,2704.7,2704.6,0.73929]
[1739546106852,0.73925,2704.8,2704.6,0.73929]
[1739546107050,0.00554416,2704.9,2704.4,3.2078]
[1739546107253,0.73937,2704.3,2704.2,0.73939]
[1739546107543,4.05048562,2704.9,2704.1,3.2078]
[1739546107752,0.00554416,2704.9,2704.2,3.2078]
[1739546108045,0.00554416,2704.9,2704.0,0.73945]
[1739546108046,3.2078,2704.5,2704.0,0.73945]
[1739546108247,3.2078,2704.5,2703.9,4.4282]
[1739546108248,0.73952,2703.8,2703.7,0.73953]
[1739546108449,3.2078,2703.9,2703.5,3.21334416]
[1739546108749,0.73954,2703.8,2703.6,0.73955]
[1739546108946,3.2078,2703.9,2703.5,3.21334416]
[1739546109144,0.73957,2703.6,2703.5,3.21334416]
[1739546109348,0.73957,2703.6,2703.5,0.00554416]
[1739546109349,3.94737,2703.6,2703.5,0.00554416]
[1739546109548,3.94737,2703.6,2702.8,3.2078]
[1739546109549,1.849,2703.5,2702.8,3.2078]
[1739546109748,3.2078,2703.3,2702.8,3.2078]
[1739546110047,0.73976,2702.9,2702.8,3.2078]
[1739546110249,3.2078,2703.3,2702.8,3.2078]
[1739546110645,0.73969,2703.2,2702.8,3.94756]
[1739546110846,0.73974,2703.0,2702.8,3.21334416]
[1739546111051,3.21334416,2703.3,2702.8,3.21334416]
[1739546111253,0.73976,2702.9,2702.8,0.00554416]
[1739546111453,3.2078,2703.0,2701.9,3.2078]
[1739546111664,3.2078,2702.5,2701.9,3.2078]
[1739546111949,0.73991,2702.4,2702.0,0.74]
[1739546112150,0.73991,2702.4,2701.9,3.2078]
[1739546112151,0.73991,2702.4,2701.9,3.94782]
[1739546112857,3.2078,2702.5,2701.9,3.21334416]
[1739546113162,3.2078,2702.8,2702.1,0.73996]
[1739546113350,0.73986,2702.6,2702.1,0.73996]
[1739546113654,1.2126,2702.9,2701.9,3.21334416]
[1739546113655,0.74,2702.0,2701.9,0.00554416]
[1739546113847,4.41461037,2702.3,2701.9,0.00554416]
[1739546113848,0.74,2702.1,2701.9,0.00554416]
[1739546114045,3.2078,2702.1,2701.9,0.00554416]
[1739546114248,0.74,2702.0,2701.9,0.00554416]
[1739546114948,1.935,2702.0,2701.2,3.2078]
[1739546115149,3.2078,2701.5,2700.9,3.2078]
[1739546115356,7.62241037,2701.5,2700.7,1.1649]
[1739546115546,9.55941037,2701.5,2700.7,1.90524]
[1739546115751,0.74027,2701.1,2700.7,1.90524]
[1739546115948,3.2078,2701.2,2700.7,1.1649]
[1739546116144,0.74034,2700.8,2700.0,4.369]
[1739546116351,3.2078,2700.9,2700.0,4.369]
[1739546116552,3.94812,2700.9,2700.0,4.369]
[1739546116754,0.74034,2700.8,2700.4,0.74044]
[1739546117058,3.2078,2700.9,2700.0,4.369]
[1739546117258,3.2078,2700.9,2700.3,3.2078]
[1739546117448,3.2078,2700.9,2700.3,3.94826]
[1739546117649,3.2078,2700.9,2700.3,3.2078]
[1739546117954,3.2078,2700.9,2700.4,0.74043]
[1739546118453,3.2078,2700.9,2700.3,0.74045]
[1739546118645,3.2078,2700.6,2700.0,3.2078]
[1739546118851,1.931,2700.5,2700.0,3.2078]
[1739546119157,0.74051,2700.2,2700.0,3.2078]
[1739546119354,3.1193,2700.5,2700.0,3.2078]
[1739546119556,0.7405,2700.2,2700.0,3.2078]
[1739546119857,3.2078,2700.2,2699.5,3.26472547]
[1739546120058,3.1149,2700.4,2699.5,3.26472547]
[1739546120254,1.1709,2700.4,2699.5,3.26472547]
[1739546120556,1.1709,2700.4,2699.8,3.2078]
[1739546120756,1.1709,2700.4,2700.2,0.74048]
[1739546120959,5.1508,2700.8,2700.1,3.2078]
[1739546121159,0.74045,2700.4,2700.1,0.74051]
[1739546121352,0.74045,2700.4,2699.7,3.2078]
[1739546121353,3.2078,2700.4,2699.7,3.2078]
[1739546121658,3.2078,2700.4,2699.6,1.943]
[1739546121848,4.41461037,2700.3,2699.5,0.05692547]
[1739546122048,3.2078,2700.1,2699.5,0.05692547]
[1739546122244,3.2078,2699.8,2699.0,3.2078]
[1739546122454,1.222,2700.7,2698.4,1.2501]
[1739546122455,3.2078,2699.1,2698.4,1.2501]
[1739546122954,3.2078,2698.6,2698.0,3.2078]
[1739546123555,3.2078,2698.8,2698.0,5.06052]
[1739546123749,1.26635473,2699.0,2698.3,3.2078]
[1739546123955,0.00555473,2699.0,2698.9,0.74085]
[1739546124152,0.00555473,2699.0,2698.9,3.94865]
[1739546124458,0.00555473,2699.0,2698.9,0.74085]
[1739546124955,0.00555473,2699.0,2698.9,3.94865]
[1739546125150,7.62241037,2700.3,2698.9,11.1838]
[1739546125357,3.2078,2700.3,2699.7,3.2078]
[1739546125557,3.2078,2700.3,2699.2,3.2078]
[1739546125749,3.11851,2701.2,2700.0,3.2078]
[1739546125750,4.41461037,2701.1,2700.0,3.2078]
[1739546125951,3.2078,2700.9,2700.0,1.985]
[1739546126151,0.74053,2700.1,2699.7,0.74062]
[1739546126351,3.2078,2700.3,2700.2,0.00555473]
[1739546126547,7.62241037,2700.3,2699.3,3.2078]
[1739546126758,3.2078,2699.8,2699.5,0.74068]
[1739546126954,3.2078,2700.1,2699.3,3.2078]
[1739546127155,4.4201651,2700.7,2699.7,1.85159]
[1739546127351,4.4201651,2700.7,2699.6,3.2078]
[1739546127561,3.2078,2700.0,2699.3,3.2078]
[1739546127758,0.74066,2699.6,2699.2,0.74077]
[1739546127957,3.94846,2699.6,2699.0,3.2078]
[1739546128157,0.74071,2699.5,2699.0,3.94861]
[1739546128462,0.7407,2699.5,2699.1,0.74078]
[1739546128657,0.74074,2699.4,2699.0,3.2078]
[1739546128859,4.41461037,2699.8,2699.0,3.2078]
[1739546129057,0.74069,2699.5,2699.0,3.9486]
[1739546129259,3.2078,2699.6,2698.6,4.3676]
[1739546129565,0.74086,2698.9,2698.5,0.74095]
[1739546129762,3.2078,2698.7,2698.0,4.4604]
[1739546130259,3.2078,2698.7,2698.1,0.74106]
[1739546130463,3.2078,2698.7,2698.0,4.4604]
[1739546130658,4.41461037,2698.6,2698.0,4.4604]
[1739546130863,0.74097,2698.5,2698.0,4.4604]
[1739546131059,3.2078,2698.7,2698.0,4.4604]
[1739546131255,0.74095,2698.6,2698.0,4.4604]
[1739546131457,3.2078,2698.7,2698.0,4.4604]
[1739546131758,1.2636,2698.9,2697.9,0.15716951]
[1739546131759,3.2078,2698.1,2697.9,0.15716951]
[1739546131955,3.94879,2698.4,2698.0,0.7411]
[1739546132153,3.2078,2698.1,2697.9,0.15716951]
[1739546133066,3.2078,2698.1,2698.0,0.7411]
[1739546133265,3.2078,2698.5,2697.9,0.15716951]
[1739546133562,0.74098,2698.5,2698.1,0.74106]
[1739546133771,0.74102,2698.3,2698.0,3.2078]
[1739546133962,7.62241037,2698.6,2698.0,3.2078]
[1739546134163,7.62241037,2698.6,2697.9,0.15716951]
[1739546134362,9.47476037,2698.6,2697.9,0.15716951]
[1739546134665,3.2078,2698.3,2698.0,0.74109]
[1739546134871,3.2078,2698.3,2697.9,0.15716951]
[1739546135067,3.94883,2698.3,2697.9,0.89828951]
[1739546135277,3.2078,2698.0,2697.3,3.2078]
[1739546135569,4.41461037,2697.7,2697.0,3.2078]
[1739546135763,7.62241037,2697.7,2697.0,3.2078]
[1739546136171,0.74133,2697.2,2697.0,3.2078]
[1739546136469,7.62241037,2697.7,2697.1,0.74133]
[1739546136470,3.2078,2697.4,2697.1,0.74133]
[1739546136664,3.2078,2697.4,2696.7,3.2078]
[1739546136968,7.62241037,2697.7,2697.3,0.74128]
[1739546137159,9.63341037,2697.7,2697.5,0.05071023]
[1739546137367,0.74121,2697.6,2697.5,0.05071023]
[1739546137765,0.74121,2697.6,2671.3,0.13508591]
[1739546137766,4.41461037,2696.9,2695.8,1.2037]
[1739546138064,3.2078,2696.3,2695.8,1.2037]
[1739546138268,3.94938,2696.3,2695.7,3.2078]
[1739546138460,3.2078,2696.3,2695.7,3.2078]
[1739546138860,0.00555473,2696.3,2695.6,3.2078]
[1739546139471,0.00555473,2696.3,2696.2,0.7416]
[1739546139659,3.21335473,2696.3,2695.3,3.2078]
[1739546139864,4.41461037,2696.2,2695.3,1.85461]
[1739546140163,0.00555473,2696.3,2695.0,3.2078]
[1739546140164,7.62241037,2695.8,2695.0,3.2078]
[1739546140364,7.62241037,2695.8,2695.4,0.7418]
[1739546140559,7.62241037,2695.8,2695.0,3.2078]
[1739546141063,4.41461037,2696.2,2695.3,3.2078]
[1739546141269,0.00555473,2696.3,2695.6,3.2078]
[1739546141568,0.00555473,2696.3,2696.2,0.00692151]
[1739546141773,0.00555473,2696.3,2696.2,0.74852151]
[1739546141976,0.74712473,2696.3,2696.2,0.00692151]
[1739546142479,0.74712473,2696.3,2695.0,1.2269]
[1739546142480,6.00555473,2696.3,2695.1,3.2078]
[1739546142684,3.2078,2696.0,2695.3,0.74183]
[1739546142880,0.74176,2695.6,2695.0,1.9688]
[1739546143083,0.74175,2695.7,2695.1,0.74187]
[1739546143278,0.74175,2695.7,2695.1,0.7419]
[1739546143479,0.74173,2695.7,2695.0,1.2269]
[1739546143781,5.62701037,2696.2,2695.4,3.2078]
[1739546143987,0.74162,2696.1,2695.7,0.74171]
[1739546144284,0.74166,2696.0,2695.9,0.05071023]
[1739546144873,4.41461037,2696.2,2695.9,0.05071023]
[1739546145072,0.00555473,2696.3,2696.0,0.74165]
[1739546145384,0.00555473,2696.3,2696.1,0.05071023]
[1739546146092,0.00555473,2696.3,2696.2,0.7416]
[1739546146386,0.00555473,2696.3,2696.2,0.79231023]
[1739546146974,0.74712473,2696.3,2696.2,0.05071023]
[1739546147181,0.00555473,2696.3,2696.2,0.05071023]
[1739546147383,0.00555473,2696.3,2696.2,0.79231023]
[1739546147589,0.00555473,2696.3,2696.2,0.05071023]
[1739546148087,0.74712473,2696.3,2696.2,0.05071023]
[1739546149488,0.00555473,2696.3,2696.2,0.05071023]
[1739546149692,0.00555473,2696.3,2696.2,0.79231023]
[1739546149987,0.00555473,2696.3,2696.2,2.05871023]
[1739546150183,0.00555473,2696.3,2696.2,2.008]
[1739546150383,0.00555473,2696.3,2696.2,2.10938496]
[1739546155897,4.41461037,2697.4,2696.5,1.85374]